[Event "Titled Tuesday Blitz January 31 Early 2023"]
[White "Goltsev, Dmitry"]
[Black "Borrmann, Laurenz"]
[WhiteFideId "24176710"]
[BlackFideId "312187930"]
[WhiteElo "2269"]
[BlackElo "2304"]
[Result "1-0"]
[Round "04"]
[TimeControl "180+2"]
[Date "2023.01.31"]
[WhiteClock "0:00:14"]
[BlackClock "0:00:02"]

1. e4 {[%clk 0:03:00]}  c6 {[%clk 0:02:59]} 2. d4 {[%clk 0:03:00]}  d5 {[%clk 0:02:59]} 3. Nc3 {[%clk 0:03:01]}  dxe4 {[%clk 0:02:58]} 4. Nxe4 {[%clk 0:03:02]}  Nf6 {[%clk 0:02:59]} 5. Ng3 {[%clk 0:03:01]}  h5 {[%clk 0:02:58]} 6. h4 {[%clk 0:03:01]}  c5 {[%clk 0:02:55]} 7. Nf3 {[%clk 0:02:58]}  Nc6 {[%clk 0:02:43]} 8. Bb5 {[%clk 0:02:50]}  Qa5+ {[%clk 0:02:38]} 9. c3 {[%clk 0:02:50]}  Qxb5 {[%clk 0:02:37]} 10. d5 {[%clk 0:02:50]}  Na5 {[%clk 0:02:15]} 11. b3 {[%clk 0:02:45]}  Bg4 {[%clk 0:02:08]} 12. c4 {[%clk 0:02:43]}  Qd7 {[%clk 0:02:08]} 13. Qd2 {[%clk 0:02:38]}  Bxf3 {[%clk 0:02:02]} 14. gxf3 {[%clk 0:02:39]}  b6 {[%clk 0:02:02]} 15. Bb2 {[%clk 0:02:39]}  O-O-O {[%clk 0:01:59]} 16. O-O-O {[%clk 0:02:34]}  g6 {[%clk 0:01:57]} 17. Ne4 {[%clk 0:02:33]}  Bh6 {[%clk 0:01:54]} 18. Ng5 {[%clk 0:02:27]}  Rhf8 {[%clk 0:01:39]} 19. Rhe1 {[%clk 0:02:21]}  Nb7 {[%clk 0:01:33]} 20. Qf4 {[%clk 0:02:19]}  Ne8 {[%clk 0:01:24]} 21. Qe4 {[%clk 0:01:50]}  Bxg5+ {[%clk 0:01:03]} 22. hxg5 {[%clk 0:01:50]}  Ned6 {[%clk 0:01:02]} 23. Qf4 {[%clk 0:01:31]}  Qf5 {[%clk 0:00:58]} 24. Qg3 {[%clk 0:01:32]}  Rde8 {[%clk 0:00:56]} 25. Re5 {[%clk 0:01:32]}  Qd7 {[%clk 0:00:56]} 26. Rde1 {[%clk 0:01:32]}  Nf5 {[%clk 0:00:56]} 27. Qf4 {[%clk 0:01:30]}  Nbd6 {[%clk 0:00:56]} 28. a3 {[%clk 0:01:27]}  h4 {[%clk 0:00:51]} 29. Kb1 {[%clk 0:01:26]}  h3 {[%clk 0:00:50]} 30. b4 {[%clk 0:01:26]}  Rh8 {[%clk 0:00:45]} 31. Rh1 {[%clk 0:01:09]}  Rh4 {[%clk 0:00:43]} 32. Qc1 {[%clk 0:01:04]}  Rxc4 {[%clk 0:00:33]} 33. Qf1 {[%clk 0:01:04]}  Rh4 {[%clk 0:00:30]} 34. bxc5 {[%clk 0:01:01]}  bxc5 {[%clk 0:00:25]} 35. Ka1 {[%clk 0:01:01]}  Nc4 {[%clk 0:00:22]} 36. Re4 {[%clk 0:00:58]}  Nxb2 {[%clk 0:00:20]} 37. Kxb2 {[%clk 0:00:57]}  Qb7+ {[%clk 0:00:19]} 38. Ka1 {[%clk 0:00:57]}  Rxe4 {[%clk 0:00:18]} 39. fxe4 {[%clk 0:00:57]}  Nd4 {[%clk 0:00:18]} 40. Qc4 {[%clk 0:00:56]}  Qb5 {[%clk 0:00:14]} 41. Qc3 {[%clk 0:00:52]}  Nb3+ {[%clk 0:00:10]} 42. Ka2 {[%clk 0:00:51]}  c4 {[%clk 0:00:10]} 43. Rxh3 {[%clk 0:00:47]}  Kb8 {[%clk 0:00:09]} 44. Rh7 {[%clk 0:00:38]}  Ka8 {[%clk 0:00:09]} 45. Rxf7 {[%clk 0:00:38]}  Rb8 {[%clk 0:00:09]} 46. Rxe7 {[%clk 0:00:32]}  Nc5 {[%clk 0:00:07]} 47. Qb4 {[%clk 0:00:31]}  Qxb4 {[%clk 0:00:06]} 48. axb4 {[%clk 0:00:32]}  Nd3 {[%clk 0:00:06]} 49. Rc7 {[%clk 0:00:30]}  Nxb4+ {[%clk 0:00:04]} 50. Ka3 {[%clk 0:00:31]}  Nc2+ {[%clk 0:00:03]} 51. Ka4 {[%clk 0:00:31]}  Rb4+ {[%clk 0:00:03]} 52. Ka5 {[%clk 0:00:32]}  Kb8 {[%clk 0:00:03]} 53. d6 {[%clk 0:00:26]}  Rb6 {[%clk 0:00:03]} 54. e5 {[%clk 0:00:26]}  Nb4 {[%clk 0:00:02]} 55. Rxc4 {[%clk 0:00:22]}  Nc6+ {[%clk 0:00:03]} 56. Ka4 {[%clk 0:00:23]}  Nxe5 {[%clk 0:00:04]} 57. Re4 {[%clk 0:00:22]}  Nd7 {[%clk 0:00:04]} 58. Rd4 {[%clk 0:00:19]}  Kb7 {[%clk 0:00:04]} 59. f4 {[%clk 0:00:19]}  Kc6 {[%clk 0:00:04]} 60. f5 {[%clk 0:00:20]}  gxf5 {[%clk 0:00:05]} 61. g6 {[%clk 0:00:21]}  Rb8 {[%clk 0:00:05]} 62. Ka5 {[%clk 0:00:18]}  Rg8 {[%clk 0:00:06]} 63. Rf4 {[%clk 0:00:19]}  Rxg6 {[%clk 0:00:05]} 64. Rxf5 {[%clk 0:00:19]}  Kb7 {[%clk 0:00:02]} 65. Rd5 {[%clk 0:00:15]}  Rg1 {[%clk 0:00:01]} 66. Rd2 {[%clk 0:00:13]}  Rb1 {[%clk 0:00:02]} 67. Rc2 {[%clk 0:00:12]}  Rb6 {[%clk 0:00:03]} 68. Rc7+ {[%clk 0:00:12]}  Kb8 {[%clk 0:00:03]} 69. Rxd7 {[%clk 0:00:13]}  Rc6 {[%clk 0:00:03]} 70. Kb5 {[%clk 0:00:13]}  Rb6+ {[%clk 0:00:03]} 71. Kc5 {[%clk 0:00:13]}  Rb1 {[%clk 0:00:03]} 72. Rh7 {[%clk 0:00:13]}  Rc1+ {[%clk 0:00:03]} 73. Kd5 {[%clk 0:00:14]}  Rd1+ {[%clk 0:00:03]} 74. Kc6 {[%clk 0:00:14]}  Rc1+ {[%clk 0:00:03]} 75. Kd7 {[%clk 0:00:14]}  a5 {[%clk 0:00:03]} 76. Rh5 {[%clk 0:00:14]}  Kb7 {[%clk 0:00:02]} 77. Rxa5 {[%clk 0:00:15]}  Rd1 {[%clk 0:00:03]} 78. Re5 {[%clk 0:00:13]}  Kb6 {[%clk 0:00:03]} 79. Ke7 {[%clk 0:00:12]}  Kc6 {[%clk 0:00:03]} 80. Re2 {[%clk 0:00:12]}  Rd3 {[%clk 0:00:01]} 81. Rc2+ {[%clk 0:00:12]}  Kb7 {[%clk 0:00:02]} 82. d7 {[%clk 0:00:13]}  Re3+ {[%clk 0:00:02]} 83. Kd8 {[%clk 0:00:13]}  Rd3 {[%clk 0:00:03]} 84. Re2 {[%clk 0:00:13]}  Kc6 {[%clk 0:00:03]} 85. Ke8 {[%clk 0:00:12]}  Rxd7 {[%clk 0:00:02]} 86. Rc2+ {[%clk 0:00:13]}  Kd6 {[%clk 0:00:01]} 87. Rd2+ {[%clk 0:00:13]}  Ke6 {[%clk 0:00:01]} 88. Rxd7 {[%clk 0:00:14]}  Ke5 {[%clk 0:00:02]} 89. Re7+ {[%clk 0:00:14]} 1-0


[Site "https://www.chess.com"]

[Event "Titled Tuesday Blitz January 31 Early 2023"]
[White "Costachi, Mihnea"]
[Black "Bagrationi, Alexander"]
[WhiteFideId "1217518"]
[BlackFideId "14104954"]
[WhiteElo "2476"]
[BlackElo "2454"]
[Result "1-0"]
[Round "04"]
[TimeControl "180+2"]
[Date "2023.01.31"]
[WhiteClock "0:00:10"]
[BlackClock "0:00:05"]

1. Nc3 {[%clk 0:03:00]}  e5 {[%clk 0:02:52]} 2. e4 {[%clk 0:03:00]}  Nc6 {[%clk 0:02:47]} 3. Bc4 {[%clk 0:02:59]}  Bc5 {[%clk 0:02:44]} 4. d3 {[%clk 0:03:00]}  d6 {[%clk 0:02:44]} 5. f4 {[%clk 0:03:00]}  Bxg1 {[%clk 0:02:40]} 6. Rxg1 {[%clk 0:03:00]}  Qh4+ {[%clk 0:02:40]} 7. g3 {[%clk 0:02:33]}  Qxh2 {[%clk 0:02:37]} 8. Be3 {[%clk 0:02:34]}  Nd4 {[%clk 0:02:33]} 9. Bf2 {[%clk 0:02:07]}  Nf6 {[%clk 0:02:04]} 10. fxe5 {[%clk 0:01:57]}  Bg4 {[%clk 0:01:55]} 11. Bxd4 {[%clk 0:01:44]}  Bxd1 {[%clk 0:01:51]} 12. exf6 {[%clk 0:01:44]}  Bxc2 {[%clk 0:01:30]} 13. Nd5 {[%clk 0:01:29]}  gxf6 {[%clk 0:01:24]} 14. Nxc7+ {[%clk 0:01:19]}  Kd7 {[%clk 0:01:23]} 15. Nxa8 {[%clk 0:01:19]}  Rxa8 {[%clk 0:01:22]} 16. Rc1 {[%clk 0:01:16]}  f5 {[%clk 0:01:17]} 17. Bb5+ {[%clk 0:01:13]}  Ke7 {[%clk 0:01:02]} 18. exf5 {[%clk 0:01:13]}  a6 {[%clk 0:01:02]} 19. Bc4 {[%clk 0:01:09]}  Kd7 {[%clk 0:00:59]} 20. Bxf7 {[%clk 0:01:07]}  Bxd3 {[%clk 0:00:54]} 21. Be6+ {[%clk 0:01:07]}  Ke8 {[%clk 0:00:50]} 22. Bf2 {[%clk 0:01:06]}  Qh6 {[%clk 0:00:28]} 23. Rc7 {[%clk 0:01:01]}  Rd8 {[%clk 0:00:07]} 24. Bd4 {[%clk 0:00:39]}  d5 {[%clk 0:00:04]} 25. Bf7+ {[%clk 0:00:22]}  Kf8 {[%clk 0:00:05]} 26. Be6 {[%clk 0:00:23]}  Ke8 {[%clk 0:00:05]} 27. Kd1 {[%clk 0:00:18]}  Rd6 {[%clk 0:00:05]} 28. Re1 {[%clk 0:00:16]}  Kd8 {[%clk 0:00:04]} 29. Rc8+ {[%clk 0:00:16]}  Ke7 {[%clk 0:00:05]} 30. f6+ {[%clk 0:00:13]}  Qxf6 {[%clk 0:00:02]} 31. Rc7+ {[%clk 0:00:13]}  Kd8 {[%clk 0:00:02]} 32. Bxf6+ {[%clk 0:00:12]}  Kxc7 {[%clk 0:00:03]} 33. Be5 {[%clk 0:00:13]}  Be4 {[%clk 0:00:02]} 34. Bxd6+ {[%clk 0:00:12]}  Kxd6 {[%clk 0:00:03]} 35. Bc8 {[%clk 0:00:11]}  Ke5 {[%clk 0:00:04]} 36. Bxb7 {[%clk 0:00:11]}  a5 {[%clk 0:00:05]} 37. Rxe4+ {[%clk 0:00:10]} 1-0


[Site "https://www.chess.com"]

[Event "Titled Tuesday Blitz January 31 Early 2023"]
[White "Lotfizadeh, Mehdi"]
[Black "Papasimakopoulos, Alexandros"]
[WhiteFideId "42513618"]
[BlackFideId "4244125"]
[WhiteElo "1529"]
[BlackElo "2401"]
[Result "1-0"]
[Round "04"]
[TimeControl "180+2"]
[Date "2023.01.31"]
[WhiteClock "0:00:01"]
[BlackClock "0:00:01"]

1. Nf3 {[%clk 0:03:00]}  f5 {[%clk 0:02:54]} 2. g3 {[%clk 0:02:58]}  Nf6 {[%clk 0:02:53]} 3. Bg2 {[%clk 0:02:58]}  g6 {[%clk 0:02:53]} 4. b3 {[%clk 0:02:57]}  Bg7 {[%clk 0:02:54]} 5. Bb2 {[%clk 0:02:57]}  O-O {[%clk 0:02:54]} 6. O-O {[%clk 0:02:55]}  a5 {[%clk 0:02:50]} 7. c4 {[%clk 0:02:51]}  a4 {[%clk 0:02:43]} 8. d4 {[%clk 0:02:43]}  c6 {[%clk 0:02:34]} 9. Nbd2 {[%clk 0:02:37]}  Ne4 {[%clk 0:02:24]} 10. Qc2 {[%clk 0:02:24]}  a3 {[%clk 0:02:16]} 11. Bc1 {[%clk 0:02:23]}  d5 {[%clk 0:02:09]} 12. Rb1 {[%clk 0:02:18]}  Nd7 {[%clk 0:01:55]} 13. b4 {[%clk 0:02:10]}  Nb6 {[%clk 0:01:42]} 14. c5 {[%clk 0:01:48]}  Nxd2 {[%clk 0:01:35]} 15. Nxd2 {[%clk 0:01:46]}  Nd7 {[%clk 0:01:36]} 16. Nf3 {[%clk 0:01:45]}  e5 {[%clk 0:01:36]} 17. dxe5 {[%clk 0:01:45]}  Nxe5 {[%clk 0:01:36]} 18. Nxe5 {[%clk 0:01:44]}  Bxe5 {[%clk 0:01:37]} 19. Rb3 {[%clk 0:01:43]}  Be6 {[%clk 0:01:23]} 20. Rxa3 {[%clk 0:01:38]}  Rxa3 {[%clk 0:01:18]} 21. Bxa3 {[%clk 0:01:37]}  Qa8 {[%clk 0:01:18]} 22. Bc1 {[%clk 0:01:31]}  Qa6 {[%clk 0:01:15]} 23. a3 {[%clk 0:01:30]}  Re8 {[%clk 0:01:08]} 24. e3 {[%clk 0:01:25]}  Rd8 {[%clk 0:01:01]} 25. Bb2 {[%clk 0:01:22]}  Bxb2 {[%clk 0:00:56]} 26. Qxb2 {[%clk 0:01:22]}  Kf7 {[%clk 0:00:56]} 27. Ra1 {[%clk 0:01:12]}  Qc4 {[%clk 0:00:51]} 28. Bf1 {[%clk 0:01:09]}  Qe4 {[%clk 0:00:51]} 29. Rd1 {[%clk 0:01:06]}  Ra8 {[%clk 0:00:40]} 30. Qc3 {[%clk 0:01:02]}  Re8 {[%clk 0:00:20]} 31. h4 {[%clk 0:01:00]}  Ra8 {[%clk 0:00:19]} 32. Be2 {[%clk 0:00:56]}  f4 {[%clk 0:00:08]} 33. gxf4 {[%clk 0:00:45]}  Qf5 {[%clk 0:00:08]} 34. Bf3 {[%clk 0:00:32]}  Qh3 {[%clk 0:00:07]} 35. Bg2 {[%clk 0:00:32]}  Qxh4 {[%clk 0:00:07]} 36. Qe5 {[%clk 0:00:29]}  Rxa3 {[%clk 0:00:07]} 37. b5 {[%clk 0:00:26]}  Ra2 {[%clk 0:00:06]} 38. Rf1 {[%clk 0:00:23]}  Qf6 {[%clk 0:00:06]} 39. Qc7+ {[%clk 0:00:22]}  Qe7 {[%clk 0:00:06]} 40. b6 {[%clk 0:00:19]}  Qxc7 {[%clk 0:00:06]} 41. bxc7 {[%clk 0:00:19]}  Ke7 {[%clk 0:00:06]} 42. Rb1 {[%clk 0:00:18]}  Ra7 {[%clk 0:00:07]} 43. Kh2 {[%clk 0:00:15]}  Kd7 {[%clk 0:00:07]} 44. Bh3 {[%clk 0:00:14]}  Bxh3 {[%clk 0:00:07]} 45. Kxh3 {[%clk 0:00:14]}  Kxc7 {[%clk 0:00:08]} 46. Kg4 {[%clk 0:00:15]}  Ra2 {[%clk 0:00:08]} 47. Rh1 {[%clk 0:00:12]}  h5+ {[%clk 0:00:07]} 48. Kg5 {[%clk 0:00:12]}  Rxf2 {[%clk 0:00:06]} 49. Kxg6 {[%clk 0:00:12]}  Rc2 {[%clk 0:00:07]} 50. f5 {[%clk 0:00:11]}  Rxc5 {[%clk 0:00:07]} 51. f6 {[%clk 0:00:11]}  Rc2 {[%clk 0:00:07]} 52. f7 {[%clk 0:00:11]}  Rf2 {[%clk 0:00:08]} 53. Kg7 {[%clk 0:00:11]}  c5 {[%clk 0:00:07]} 54. f8=Q {[%clk 0:00:09]}  Rxf8 {[%clk 0:00:07]} 55. Kxf8 {[%clk 0:00:10]}  Kd6 {[%clk 0:00:07]} 56. Rxh5 {[%clk 0:00:10]}  c4 {[%clk 0:00:08]} 57. Kf7 {[%clk 0:00:09]}  b5 {[%clk 0:00:08]} 58. Kf6 {[%clk 0:00:07]}  b4 {[%clk 0:00:08]} 59. Rh8 {[%clk 0:00:07]}  b3 {[%clk 0:00:08]} 60. Rb8 {[%clk 0:00:07]}  d4 {[%clk 0:00:06]} 61. exd4 {[%clk 0:00:07]}  Kd5 {[%clk 0:00:07]} 62. Rd8+ {[%clk 0:00:07]}  Ke4 {[%clk 0:00:06]} 63. d5 {[%clk 0:00:05]}  c3 {[%clk 0:00:06]} 64. d6 {[%clk 0:00:05]}  b2 {[%clk 0:00:05]} 65. Re8+ {[%clk 0:00:04]}  Kf4 {[%clk 0:00:05]} 66. d7 {[%clk 0:00:05]}  b1=Q {[%clk 0:00:04]} 67. d8=Q {[%clk 0:00:05]}  Qb2 {[%clk 0:00:03]} 68. Qd6+ {[%clk 0:00:05]}  Kf3 {[%clk 0:00:03]} 69. Qd5+ {[%clk 0:00:04]}  Kf2 {[%clk 0:00:04]} 70. Qd4+ {[%clk 0:00:04]}  Kf1 {[%clk 0:00:04]} 71. Qf4+ {[%clk 0:00:04]}  Kg1 {[%clk 0:00:02]} 72. Rg8+ {[%clk 0:00:04]}  Kh1 {[%clk 0:00:01]} 73. Qh4+ {[%clk 0:00:04]}  Qh2 {[%clk 0:00:01]} 74. Qe1+ {[%clk 0:00:01]} 1-0


[Site "https://www.chess.com"]

[Event "Titled Tuesday Blitz January 31 Early 2023"]
[White "Guliev, Logman"]
[Black "Nigmatov, Ortik"]
[WhiteFideId "13400061"]
[BlackFideId "14202131"]
[WhiteElo "2250"]
[BlackElo "2438"]
[Result "1-0"]
[Round "04"]
[TimeControl "180+2"]
[Date "2023.01.31"]
[WhiteClock "0:01:16"]
[BlackClock "0:00:30"]

1. e4 {[%clk 0:03:00]}  c5 {[%clk 0:02:59]} 2. Nf3 {[%clk 0:02:59]}  e6 {[%clk 0:02:59]} 3. d4 {[%clk 0:02:57]}  cxd4 {[%clk 0:03:00]} 4. Nxd4 {[%clk 0:02:57]}  Nf6 {[%clk 0:03:00]} 5. Bd3 {[%clk 0:02:56]}  Nc6 {[%clk 0:02:59]} 6. Nxc6 {[%clk 0:02:56]}  bxc6 {[%clk 0:02:58]} 7. O-O {[%clk 0:02:56]}  d5 {[%clk 0:02:58]} 8. Nd2 {[%clk 0:02:56]}  Be7 {[%clk 0:02:57]} 9. c4 {[%clk 0:02:55]}  O-O {[%clk 0:02:57]} 10. Qc2 {[%clk 0:02:55]}  Qc7 {[%clk 0:02:54]} 11. cxd5 {[%clk 0:02:44]}  Bb7 {[%clk 0:02:09]} 12. Nf3 {[%clk 0:02:15]}  exd5 {[%clk 0:01:44]} 13. exd5 {[%clk 0:02:13]}  h6 {[%clk 0:01:44]} 14. dxc6 {[%clk 0:02:09]}  Qxc6 {[%clk 0:01:28]} 15. Qxc6 {[%clk 0:02:05]}  Bxc6 {[%clk 0:01:29]} 16. Ne5 {[%clk 0:02:04]}  Bd5 {[%clk 0:01:28]} 17. Be3 {[%clk 0:02:01]}  a5 {[%clk 0:01:27]} 18. Bc4 {[%clk 0:01:59]}  Rab8 {[%clk 0:01:24]} 19. Bxd5 {[%clk 0:01:57]}  Nxd5 {[%clk 0:01:23]} 20. Nd7 {[%clk 0:01:58]}  Rxb2 {[%clk 0:01:11]} 21. Nxf8 {[%clk 0:01:58]}  Bxf8 {[%clk 0:01:12]} 22. Bd4 {[%clk 0:01:53]}  Rb4 {[%clk 0:01:09]} 23. Rfd1 {[%clk 0:01:50]}  Nf4 {[%clk 0:01:08]} 24. Kf1 {[%clk 0:01:49]}  a4 {[%clk 0:01:06]} 25. Be3 {[%clk 0:01:42]}  Ne6 {[%clk 0:01:05]} 26. Rab1 {[%clk 0:01:40]}  Re4 {[%clk 0:01:03]} 27. Rb8 {[%clk 0:01:39]}  h5 {[%clk 0:00:59]} 28. Ra8 {[%clk 0:01:32]}  Rc4 {[%clk 0:00:56]} 29. Rc1 {[%clk 0:01:29]}  Re4 {[%clk 0:00:53]} 30. Rcc8 {[%clk 0:01:27]}  h4 {[%clk 0:00:46]} 31. Bc5 {[%clk 0:01:24]}  Nxc5 {[%clk 0:00:45]} 32. Rxc5 {[%clk 0:01:20]}  Rb4 {[%clk 0:00:28]} 33. Rcc8 {[%clk 0:01:18]}  Rb1+ {[%clk 0:00:28]} 34. Ke2 {[%clk 0:01:17]}  Rb2+ {[%clk 0:00:29]} 35. Kf3 {[%clk 0:01:17]}  Rxa2 {[%clk 0:00:30]} 36. Rxf8+ {[%clk 0:01:17]}  Kh7 {[%clk 0:00:31]} 37. Rxf7 {[%clk 0:01:17]}  a3 {[%clk 0:00:30]} 38. Rfa7 {[%clk 0:01:16]} 1-0


[Site "https://www.chess.com"]

[Event "Titled Tuesday Blitz January 31 Early 2023"]
[White "Ioannidis, Evgenios"]
[Black "Gatterer, Florian"]
[WhiteFideId "4229274"]
[BlackFideId "811688"]
[WhiteElo "2467"]
[BlackElo "2170"]
[Result "1-0"]
[Round "04"]
[TimeControl "180+2"]
[Date "2023.01.31"]
[WhiteClock "0:00:06"]
[BlackClock "0:00:03"]

1. d4 {[%clk 0:03:00]}  Nf6 {[%clk 0:02:59]} 2. c4 {[%clk 0:03:01]}  e6 {[%clk 0:02:59]} 3. Nc3 {[%clk 0:03:01]}  Bb4 {[%clk 0:02:59]} 4. Qc2 {[%clk 0:03:01]}  O-O {[%clk 0:02:59]} 5. e4 {[%clk 0:03:02]}  d5 {[%clk 0:02:58]} 6. e5 {[%clk 0:03:02]}  Ne4 {[%clk 0:02:58]} 7. Bd3 {[%clk 0:03:02]}  c5 {[%clk 0:02:58]} 8. Nf3 {[%clk 0:03:03]}  cxd4 {[%clk 0:02:58]} 9. Nxd4 {[%clk 0:03:03]}  Nd7 {[%clk 0:02:58]} 10. Bf4 {[%clk 0:03:03]}  Qh4 {[%clk 0:02:58]} 11. g3 {[%clk 0:03:04]}  Qh5 {[%clk 0:02:55]} 12. h4 {[%clk 0:03:04]}  h6 {[%clk 0:01:58]} 13. Be2 {[%clk 0:02:56]}  Qg6 {[%clk 0:01:58]} 14. h5 {[%clk 0:02:51]}  Qh7 {[%clk 0:01:58]} 15. Bd3 {[%clk 0:02:46]}  Bxc3+ {[%clk 0:01:50]} 16. bxc3 {[%clk 0:02:45]}  Ndc5 {[%clk 0:01:51]} 17. f3 {[%clk 0:02:09]}  Nxd3+ {[%clk 0:01:41]} 18. Qxd3 {[%clk 0:02:09]}  Nc5 {[%clk 0:01:32]} 19. Qxh7+ {[%clk 0:02:09]}  Kxh7 {[%clk 0:01:33]} 20. cxd5 {[%clk 0:02:07]}  exd5 {[%clk 0:01:33]} 21. O-O-O {[%clk 0:02:04]}  Be6 {[%clk 0:01:24]} 22. Nb5 {[%clk 0:01:49]}  a6 {[%clk 0:01:13]} 23. Nd6 {[%clk 0:01:49]}  b5 {[%clk 0:01:10]} 24. Rd4 {[%clk 0:01:40]}  Na4 {[%clk 0:01:02]} 25. Bd2 {[%clk 0:01:33]}  Nb6 {[%clk 0:01:01]} 26. f4 {[%clk 0:01:32]}  Nc4 {[%clk 0:01:00]} 27. f5 {[%clk 0:00:37]}  Nxd6 {[%clk 0:00:59]} 28. fxe6 {[%clk 0:00:37]}  Nf5 {[%clk 0:00:59]} 29. e7 {[%clk 0:00:31]}  Nxe7 {[%clk 0:00:52]} 30. Re1 {[%clk 0:00:28]}  Rfd8 {[%clk 0:00:39]} 31. e6 {[%clk 0:00:29]}  f6 {[%clk 0:00:33]} 32. g4 {[%clk 0:00:26]}  Rac8 {[%clk 0:00:32]} 33. Kb2 {[%clk 0:00:24]}  Nc6 {[%clk 0:00:29]} 34. e7 {[%clk 0:00:20]}  Re8 {[%clk 0:00:21]} 35. Rxd5 {[%clk 0:00:20]}  Rxe7 {[%clk 0:00:22]} 36. Rxe7 {[%clk 0:00:18]}  Nxe7 {[%clk 0:00:22]} 37. Rd7 {[%clk 0:00:19]}  Nc6 {[%clk 0:00:22]} 38. Bf4 {[%clk 0:00:17]}  Na5 {[%clk 0:00:22]} 39. Ra7 {[%clk 0:00:15]}  Nc4+ {[%clk 0:00:20]} 40. Kc2 {[%clk 0:00:15]}  Rc6 {[%clk 0:00:21]} 41. Kd3 {[%clk 0:00:13]}  Kg8 {[%clk 0:00:20]} 42. Ke4 {[%clk 0:00:11]}  a5 {[%clk 0:00:11]} 43. Kd5 {[%clk 0:00:10]}  Rc8 {[%clk 0:00:11]} 44. Ke6 {[%clk 0:00:10]}  Re8+ {[%clk 0:00:10]} 45. Kf5 {[%clk 0:00:09]}  Ne3+ {[%clk 0:00:10]} 46. Kg6 {[%clk 0:00:08]}  Nxg4 {[%clk 0:00:10]} 47. Rxg7+ {[%clk 0:00:08]}  Kh8 {[%clk 0:00:10]} 48. Rb7 {[%clk 0:00:07]}  Ne5+ {[%clk 0:00:09]} 49. Kxf6 {[%clk 0:00:06]}  Nd3 {[%clk 0:00:09]} 50. Bxh6 {[%clk 0:00:06]}  Nc5 {[%clk 0:00:08]} 51. Rxb5 {[%clk 0:00:04]}  Nd7+ {[%clk 0:00:07]} 52. Kg6 {[%clk 0:00:04]}  Re6+ {[%clk 0:00:07]} 53. Kg5 {[%clk 0:00:04]}  Kh7 {[%clk 0:00:07]} 54. Rb7 {[%clk 0:00:03]}  Re5+ {[%clk 0:00:05]} 55. Kf4 {[%clk 0:00:03]}  Kxh6 {[%clk 0:00:06]} 56. Rxd7 {[%clk 0:00:02]}  Rc5 {[%clk 0:00:06]} 57. Rd6+ {[%clk 0:00:03]}  Kxh5 {[%clk 0:00:07]} 58. Rd3 {[%clk 0:00:03]}  Rc4+ {[%clk 0:00:07]} 59. Ke5 {[%clk 0:00:04]}  Ra4 {[%clk 0:00:07]} 60. Rd2 {[%clk 0:00:04]}  Kg6 {[%clk 0:00:05]} 61. Kd5 {[%clk 0:00:04]}  Kf7 {[%clk 0:00:05]} 62. Re2 {[%clk 0:00:05]}  Ra3 {[%clk 0:00:03]} 63. c4 {[%clk 0:00:05]}  Rd3+ {[%clk 0:00:03]} 64. Kc6 {[%clk 0:00:06]}  a4 {[%clk 0:00:03]} 65. c5 {[%clk 0:00:06]}  a3 {[%clk 0:00:04]} 66. Kc7 {[%clk 0:00:06]}  Rd4 {[%clk 0:00:03]} 67. c6 {[%clk 0:00:06]}  Rb4 {[%clk 0:00:03]} 68. Re3 {[%clk 0:00:06]} 1-0


[Site "https://www.chess.com"]

[Event "Titled Tuesday Blitz January 31 Early 2023"]
[White "Sliwicki, Damian"]
[Black "Fernandez Guillen, Ernesto J."]
[WhiteFideId "1127128"]
[BlackFideId "3512428"]
[WhiteElo "2158"]
[BlackElo "2477"]
[Result "0-1"]
[Round "04"]
[TimeControl "180+2"]
[Date "2023.01.31"]
[WhiteClock "0:00:01"]
[BlackClock "0:00:22"]

1. e4 {[%clk 0:03:00]}  e5 {[%clk 0:02:59]} 2. Nf3 {[%clk 0:03:00]}  Nc6 {[%clk 0:02:59]} 3. d4 {[%clk 0:03:00]}  exd4 {[%clk 0:02:58]} 4. Bc4 {[%clk 0:03:01]}  g6 {[%clk 0:02:58]} 5. Nxd4 {[%clk 0:02:54]}  Bg7 {[%clk 0:02:55]} 6. Nxc6 {[%clk 0:02:54]}  bxc6 {[%clk 0:02:56]} 7. O-O {[%clk 0:02:44]}  Ne7 {[%clk 0:02:53]} 8. Bg5 {[%clk 0:02:36]}  h6 {[%clk 0:02:39]} 9. Bh4 {[%clk 0:02:25]}  g5 {[%clk 0:02:07]} 10. Bg3 {[%clk 0:02:25]}  Bxb2 {[%clk 0:02:07]} 11. c3 {[%clk 0:01:29]}  d5 {[%clk 0:01:53]} 12. exd5 {[%clk 0:01:25]}  cxd5 {[%clk 0:01:54]} 13. Bd3 {[%clk 0:00:18]}  Bxa1 {[%clk 0:01:45]} 14. Be5 {[%clk 0:00:17]}  O-O {[%clk 0:01:15]} 15. Qh5 {[%clk 0:00:16]}  Bf5 {[%clk 0:01:12]} 16. Qxh6 {[%clk 0:00:13]}  f6 {[%clk 0:01:11]} 17. Bxf6 {[%clk 0:00:09]}  Rxf6 {[%clk 0:01:12]} 18. Qxf6 {[%clk 0:00:07]}  Bxd3 {[%clk 0:01:13]} 19. Nd2 {[%clk 0:00:05]}  Ng6 {[%clk 0:00:57]} 20. Qd4 {[%clk 0:00:03]}  Bxf1 {[%clk 0:00:56]} 21. Nxf1 {[%clk 0:00:03]}  Rb8 {[%clk 0:00:50]} 22. Ne3 {[%clk 0:00:03]}  Rb1+ {[%clk 0:00:50]} 23. Nf1 {[%clk 0:00:04]}  Qd6 {[%clk 0:00:47]} 24. g3 {[%clk 0:00:04]}  Rc1 {[%clk 0:00:34]} 25. Qd2 {[%clk 0:00:01]}  Rxc3 {[%clk 0:00:33]} 26. Qxg5 {[%clk 0:00:02]}  Rf3 {[%clk 0:00:30]} 27. Ne3 {[%clk 0:00:02]}  Bg7 {[%clk 0:00:22]} 28. Nf5 {[%clk 0:00:01]}  Qf6 {[%clk 0:00:22]} 0-1


[Site "https://www.chess.com"]

[Event "Titled Tuesday Blitz January 31 Early 2023"]
[White "Sattarov, Bobir"]
[Black "Mejia, Cherry Ann"]
[WhiteFideId "14203081"]
[BlackFideId "5206880"]
[WhiteElo "2366"]
[BlackElo "1935"]
[Result "1-0"]
[Round "04"]
[TimeControl "180+2"]
[Date "2023.01.31"]
[WhiteClock "0:00:10"]
[BlackClock "0:00:02"]

1. e4 {[%clk 0:03:00]}  c5 {[%clk 0:02:52]} 2. Nf3 {[%clk 0:03:00]}  Nc6 {[%clk 0:02:52]} 3. d4 {[%clk 0:03:01]}  cxd4 {[%clk 0:02:53]} 4. Nxd4 {[%clk 0:03:01]}  Qb6 {[%clk 0:02:54]} 5. Nb3 {[%clk 0:03:01]}  Nf6 {[%clk 0:02:54]} 6. Nc3 {[%clk 0:03:00]}  e6 {[%clk 0:02:54]} 7. Be3 {[%clk 0:03:00]}  Qc7 {[%clk 0:02:55]} 8. f4 {[%clk 0:03:00]}  d6 {[%clk 0:02:53]} 9. Qf3 {[%clk 0:02:59]}  a6 {[%clk 0:02:53]} 10. O-O-O {[%clk 0:02:57]}  Be7 {[%clk 0:02:48]} 11. g4 {[%clk 0:02:57]}  O-O {[%clk 0:02:48]} 12. g5 {[%clk 0:02:57]}  Nd7 {[%clk 0:02:48]} 13. Kb1 {[%clk 0:02:51]}  b5 {[%clk 0:02:46]} 14. Qg2 {[%clk 0:02:41]}  Bb7 {[%clk 0:02:45]} 15. f5 {[%clk 0:02:40]}  b4 {[%clk 0:02:04]} 16. Ne2 {[%clk 0:02:16]}  exf5 {[%clk 0:01:58]} 17. Nf4 {[%clk 0:02:12]}  Nce5 {[%clk 0:01:51]} 18. Nd5 {[%clk 0:02:07]}  Bxd5 {[%clk 0:01:49]} 19. Rxd5 {[%clk 0:02:05]}  fxe4 {[%clk 0:01:17]} 20. Qxe4 {[%clk 0:02:02]}  Rac8 {[%clk 0:01:13]} 21. Bxa6 {[%clk 0:01:44]}  f5 {[%clk 0:01:03]} 22. Qg2 {[%clk 0:01:34]}  f4 {[%clk 0:00:51]} 23. Bxc8 {[%clk 0:01:02]}  fxe3 {[%clk 0:00:50]} 24. Bxd7 {[%clk 0:01:01]}  Rf2 {[%clk 0:00:49]} 25. Be6+ {[%clk 0:01:01]}  Kh8 {[%clk 0:00:45]} 26. Qe4 {[%clk 0:00:58]}  e2 {[%clk 0:00:41]} 27. Nc1 {[%clk 0:00:49]}  Nc4 {[%clk 0:00:17]} 28. Re1 {[%clk 0:00:31]}  Bxg5 {[%clk 0:00:06]} 29. Rxe2 {[%clk 0:00:11]}  Rf1 {[%clk 0:00:06]} 30. Re1 {[%clk 0:00:10]}  Rxe1 {[%clk 0:00:03]} 31. Qxe1 {[%clk 0:00:11]}  Nd2+ {[%clk 0:00:02]} 32. Rxd2 {[%clk 0:00:10]}  Bxd2 {[%clk 0:00:03]} 33. Qxd2 {[%clk 0:00:11]}  Qe7 {[%clk 0:00:02]} 34. Qxb4 {[%clk 0:00:10]} 1-0


[Site "https://www.chess.com"]